fUST/lending_fUST_20241231
["ID","MTS","AMOUNT","RATE_DAILY","PERIOD"]
[347276571,1735651842135,-705.60366283,0.00020716,2]
[347276572,1735651842144,-394.0,0.00020754,2]
[347276573,1735651842154,-306.011,0.00020754,2]
[347276574,1735651842165,-2099.0,0.00020754,2]
[347276575,1735651842174,-153.0,0.00020792,2]
[347276576,1735651842183,-153.0,0.00020792,2]
[347276577,1735651842192,-153.0,0.00020792,2]
[347276578,1735651842202,-153.0,0.00020792,2]
[347276579,1735651842211,-153.0,0.00020792,2]
[347276580,1735651842220,-153.0,0.00020792,2]
[347276581,1735651842230,-153.0,0.00020792,2]
[347276582,1735651842239,-719.78,0.0002082,3]
[347276583,1735651842248,-719.78,0.0002082,3]
[347276584,1735651842257,-500.0,0.00020821,3]
[347276585,1735651842266,-500.0,0.00020821,3]
[347276586,1735651842274,-535.67,0.00020821,3]
[347276587,1735651842283,-500.0,0.00020821,3]
[347276588,1735651842293,-500.0,0.00020821,3]
[347276589,1735651842302,-1036.97,0.00020821,3]
[347276590,1735651842310,-500.0,0.00020821,3]
[347276591,1735651842319,-500.0,0.00020821,3]
[347276592,1735651842328,-674.56,0.00020821,3]
[347276593,1735651842337,-263.09,0.00020821,3]
[347276594,1735651842348,-500.0,0.00020821,3]
[347276595,1735651842357,-500.0,0.00020821,3]
[347276596,1735651842366,-500.0,0.00020821,3]
[347276597,1735651842375,-475.30470501,0.00020821,3]
[347276598,1735651842384,-500.0,0.00020821,3]
[347276599,1735651842394,-500.0,0.00020821,3]
[347276600,1735651842403,-500.0,0.00020821,3]
[347276601,1735651842412,-580.09,0.00020821,3]
[347276602,1735651842421,-566.48,0.00020821,3]
[347276603,1735651842430,-603.99,0.00020821,3]
[347276604,1735651842439,-5323.85,0.00020821,3]
[347276606,1735651842448,-1128.74,0.00020821,3]
[347276607,1735651842457,-500.0,0.00020821,3]
[347276609,1735651842465,-500.0,0.00020821,3]
[347276610,1735651842474,-500.0,0.00020821,3]
[347276612,1735651842483,-1238.31,0.00020821,3]
[347276614,1735651842493,-500.0,0.00020821,3]
[347276616,1735651842502,-587.0,0.00020866,2]
[347276617,1735651842511,-153.0,0.00020988,2]
[347276618,1735651842519,-153.0,0.00020988,2]
[347276619,1735651842528,-487.13,0.00021,2]
[347276620,1735651842537,-719.78,0.00021026,3]
[347276621,1735651842546,-719.78,0.00021026,3]
[347276622,1735651842555,-719.78,0.00021026,3]
[347276623,1735651842564,-719.78,0.00021026,3]
[347276624,1735651842573,-719.87,0.00021026,3]
[347276625,1735651842582,-554.731,0.0002105,2]
[347276626,1735651842591,-500.0,0.00021095,3]
[347276628,1735651842604,-443.95,0.00021095,3]
[347276629,1735651842613,-535.67,0.00021095,3]
[347276630,1735651842622,-500.0,0.00021095,3]
[347276631,1735651842631,-500.0,0.00021095,3]
[347276632,1735651842641,-1036.97,0.00021095,3]
[347276634,1735651842650,-341.32,0.00021095,3]
[347276636,1735651842659,-500.0,0.00021095,3]
[347276640,1735651842668,-674.56,0.00021095,3]
[347276643,1735651842677,-500.0,0.00021095,3]
[347276645,1735651842686,-500.0,0.00021095,3]
[347276647,1735651842695,-500.0,0.00021095,3]
[347276648,1735651842703,-389.5,0.00021095,3]
[347276649,1735651842712,-500.0,0.00021095,3]
[347276650,1735651842721,-500.0,0.00021095,3]
[347276651,1735651842730,-580.09,0.00021095,3]
[347276652,1735651842740,-566.48,0.00021095,3]
[347276653,1735651842749,-603.99,0.00021095,3]
[347276654,1735651842758,-5323.85,0.00021095,3]
[347276655,1735651842767,-1128.74,0.00021095,3]
[347276656,1735651842777,-572.08,0.00021095,3]
[347276657,1735651842786,-500.0,0.00021095,3]
[347276658,1735651842795,-500.0,0.00021095,3]
[347276659,1735651842804,-1238.31,0.00021095,3]
[347276660,1735651842813,-500.0,0.00021095,3]
[347276661,1735651842822,-175.589126,0.00021288,2]
[347276662,1735651842831,-500.0,0.00021369,3]
[347276663,1735651842840,-535.67,0.00021369,3]
[347276664,1735651842851,-500.0,0.00021369,3]
[347276665,1735651842860,-500.0,0.00021369,3]
[347276666,1735651842870,-260.70448039,0.00021369,3]
[347276672,1735651846079,-500.0,0.00019177,2]
[347276673,1735651846089,-500.0,0.00019178,2]
[347276674,1735651846099,-500.0,0.00019178,2]
[347276675,1735651846109,-500.0,0.00019178,2]
[347276676,1735651846118,-157.34541806,0.00019452,3]
[347276677,1735651846128,-500.0,0.00019452,3]
[347276678,1735651846137,-500.0,0.00019999,4]
[347276679,1735651846146,-500.38124228,0.00020615,2]
[347276680,1735651846158,-37.98174117,0.00020784,2]
[347276681,1735651846200,-500.0,0.00019726,3]
[347276682,1735651846211,-752.09025883,0.00020784,2]
[347276683,1735651846219,-372.21519123,0.00020821,6]
[347276684,1735651846237,-500.0,0.00019178,2]
[347276685,1735651846247,-127.78480877,0.00020821,6]
[347276686,1735651846256,-776.26551961,0.00021369,3]
[347276687,1735651846265,-405.71395162,0.00021369,3]
[347276695,1735651850538,-500.0,0.00018986,2]
[347276696,1735651850548,-500.0,0.00019178,2]
[347276697,1735651850567,-500.0,0.00019178,2]
[347276698,1735651850576,-500.0,0.00019178,2]
[347276699,1735651850586,-500.0,0.00019452,3]
[347276700,1735651850595,-500.0,0.00019452,3]
[347276701,1735651850606,-500.0,0.00019452,3]
[347276702,1735651850615,-500.0,0.00019726,3]
[347276703,1735651850624,-516.47227959,0.00019726,3]
[347276704,1735651850634,-500.0,0.0002,3]
[347276705,1735651850643,-509.60354347,0.0002,3]
[347276706,1735651850653,-500.0,0.00020273,3]
[347276707,1735651850662,-500.0,0.00020547,3]
[347276708,1735651850672,-500.0,0.00020821,3]
[347276709,1735651850681,-500.0,0.00021095,3]
[347276710,1735651850691,-151.0,0.00021343,7]
[347276711,1735651850700,-94.28604838,0.00021369,3]
[347276712,1735651850710,-674.56,0.00021369,3]
[347276713,1735651850718,-500.0,0.00021369,3]
[347276714,1735651850727,-500.0,0.00021369,3]
[347276715,1735651850736,-500.0,0.00021369,3]
[347276716,1735651850745,-500.0,0.00021369,3]
[347276717,1735651850755,-500.0,0.00021369,3]
[347276718,1735651850764,-580.09,0.00021369,3]
[347276719,1735651850773,-566.48,0.00021369,3]
[347276720,1735651850782,-603.99,0.00021369,3]
[347276721,1735651850791,-5323.85,0.00021369,3]
[347276722,1735651850800,-1128.74,0.00021369,3]
[347276723,1735651850810,-500.0,0.00021369,3]
[347276724,1735651850819,-500.0,0.00021369,3]
[347276725,1735651850828,-1238.31,0.00021369,3]
[347276726,1735651850837,-500.0,0.00021369,3]
[347276727,1735651850846,-500.0,0.00021369,3]
[347276728,1735651850859,-705.60366283,0.00021398,2]
[347276729,1735651850868,-152.0,0.0002145,2]
[347276730,1735651850877,-1200.0,0.00021501,2]
[347276731,1735651850886,-151.0,0.00021614,7]
[347276732,1735651850896,-500.0,0.00021643,3]
[347276733,1735651850905,-500.0,0.00021643,3]
[347276734,1735651850915,-473.01,0.00021643,3]
[347276735,1735651850925,-1036.97,0.00021643,3]
[347276736,1735651850934,-500.0,0.00021643,3]
[347276737,1735651850943,-674.56,0.00021643,3]
[347276738,1735651850953,-500.0,0.00021643,3]
[347276739,1735651850962,-500.0,0.00021643,3]
[347276740,1735651850971,-500.0,0.00021643,3]
[347276741,1735651850980,-500.0,0.00021643,3]
[347276742,1735651850989,-500.0,0.00021643,3]
[347276743,1735651850999,-580.09,0.00021643,3]
[347276744,1735651851008,-566.48,0.00021643,3]
[347276745,1735651851018,-603.99,0.00021643,3]
[347276746,1735651851027,-5323.85,0.00021643,3]
[347276747,1735651851036,-1128.74,0.00021643,3]
[347276748,1735651851046,-282.06,0.00021643,3]
[347276749,1735651851055,-500.0,0.00021643,3]
[347276750,1735651851064,-1238.31,0.00021643,3]
[347276751,1735651851073,-500.0,0.00021643,3]
[347276752,1735651851083,-500.0,0.00021643,8]
[347276753,1735651851092,-500.0,0.00021643,3]
[347276754,1735651851102,-193546.23856556,0.0002185,2]
[347276755,1735651851112,-151.0,0.00021885,7]
[347276756,1735651851122,-151.0,0.000219,4]
[347276757,1735651851131,-151.0,0.000219,3]
[347276758,1735651851140,-231.18,0.00021917,3]
[347276759,1735651851149,-500.0,0.00021917,3]
[347276760,1735651851162,-1036.97,0.00021917,3]
[347276761,1735651851171,-500.0,0.00021917,3]
[347276762,1735651851180,-674.56,0.00021917,3]
[347276763,1735651851190,-500.0,0.00021917,3]
[347276764,1735651851199,-500.0,0.00021917,3]
[347276765,1735651851209,-500.0,0.00021917,3]
[347276766,1735651851218,-361.75,0.00021917,3]
[347276767,1735651851228,-500.0,0.00021917,3]
[347276768,1735651851238,-580.09,0.00021917,3]
[347276769,1735651851247,-566.48,0.00021917,3]
[347276770,1735651851257,-603.99,0.00021917,3]
[347276771,1735651851266,-5323.85,0.00021917,3]
[347276772,1735651851275,-1128.74,0.00021917,3]
[347276773,1735651851284,-500.0,0.00021917,3]
[347276774,1735651851294,-1238.31,0.00021917,3]
[347276775,1735651851304,-500.0,0.00021917,3]
[347276776,1735651851314,-500.0,0.00021917,3]
[347276777,1735651851324,-193.0,0.00021933,2]
[347276778,1735651851333,-618.0,0.00022,2]
[347276779,1735651851342,-312.0,0.00022,2]
[347276780,1735651851353,-150.0,0.00022,2]
[347276781,1735651851362,-175.589126,0.00022055,2]
[347276782,1735651851372,-705.60366283,0.0002208,2]
[347276783,1735651851381,-150.0,0.000221,2]
[347276784,1735651851391,-278.107537,0.000221,2]
[347276785,1735651851400,-183.76836815,0.00022135,2]
[347276786,1735651851409,-500.0,0.00022156,8]
[347276787,1735651851419,-150.24,0.00022156,10]
[347276788,1735651851430,-500.0,0.00022156,8]
[347276789,1735651851439,-150.24,0.00022156,2]
[347276790,1735651851448,-200.44575115,0.00022156,10]
[347276791,1735651851458,-151.0,0.00022156,7]
[347276792,1735651851468,-172.13444958,0.00022179,2]
[347276793,1735651851477,-500.0,0.00022179,2]
[347276794,1735651851486,-360.14594078,0.00022179,2]
[347276795,1735651851495,-313.94444238,0.00022179,2]
[347276796,1735651851505,-350.49390768,0.00022179,2]
[347276797,1735651851514,-151.0,0.00022179,7]
[347276798,1735651851523,-151.0,0.00022179,7]
[347276799,1735651851533,-151.0,0.00022179,7]
[347276800,1735651851542,-867.227941,0.00022179,7]
[347276801,1735651851551,-867.227941,0.00022179,7]
[347276802,1735651851561,-867.227941,0.00022179,7]
[347276803,1735651851570,-867.227941,0.00022179,7]
[347276804,1735651851579,-867.227941,0.00022179,7]
[347276805,1735651851589,-867.227941,0.00022179,7]
[347276806,1735651851598,-867.227941,0.00022179,7]
[347276807,1735651851609,-867.227941,0.00022179,7]
[347276808,1735651851619,-867.227941,0.00022179,7]
[347276809,1735651851628,-867.227941,0.00022179,7]
[347276810,1735651851637,-867.227941,0.00022179,7]
[347276811,1735651851647,-867.227941,0.00022179,7]
[347276812,1735651851656,-867.227941,0.00022179,7]
[347276813,1735651851665,-867.227941,0.00022179,7]
[347276814,1735651851674,-867.227934,0.00022179,7]
[347276815,1735651851684,-151.0,0.00022179,7]
[347276816,1735651851693,-543.35599419,0.00022179,2]
[347276817,1735651851702,-775.35475842,0.00022179,2]
[347276818,1735651851712,-786494.59971174,0.0002218,10]
[347276823,1735651951232,1010.0,0.00025,120]
[347276825,1735652053033,2700.0,0.00025,120]
[347276826,1735652075374,500.0,0.00022235,120]
[347276872,1735653032638,-275.530759,0.00013023,2]
[347276873,1735653032648,-275.530759,0.00013155,2]
[347276874,1735653032657,-370.920465,0.00013973,2]
[347276875,1735653032741,-604.76575735,0.00014986,2]
[347276876,1735653032755,-604.76575735,0.0001499,2]
[347276877,1735653032765,-604.76575735,0.00014992,2]
[347276878,1735653032775,-250.0,0.00015742,2]
[347276879,1735653032784,-300.0,0.00016341,2]
[347276880,1735653032793,-294.0,0.00016341,2]
[347276881,1735653032803,-7019.96608036,0.00016342,2]
[347276882,1735653032815,-3926.29296144,0.00016342,2]
[347276911,1735653038225,-7486.80688464,0.00016178,2]
[347276913,1735653038235,-13953.7409582,0.00016342,2]
[347276915,1735653038244,-233.736831,0.00016508,2]
[347276917,1735653038254,-3132.2195724,0.00016815,2]
[347276919,1735653038263,-169.8956118,0.0001684,2]
[347276921,1735653038273,-873.2598465,0.0001694,2]
[347276923,1735653038282,-500.0,0.00017509,2]
[347276925,1735653038291,-485.41299232,0.00017787,2]
[347276927,1735653038301,-152.0,0.00017794,2]
[347276929,1735653038310,-836.77710601,0.00017859,2]
[347276931,1735653038320,-420.0,0.00017859,2]
[347276933,1735653038329,-169.89561177,0.00017931,2]
[347276942,1735653038407,-95934.58862716,0.00018,8]
[347276945,1735653038424,-28165.44943817,0.00018,8]
[347276947,1735653038434,-4042.39132707,0.00018177,2]
[347276949,1735653038445,-192.0,0.00018195,2]
[347276951,1735653038455,-187.58795625,0.00018278,2]
[347276954,1735653038464,-452.492,0.00018278,2]
[347276955,1735653038474,-500.0,0.00018331,4]
[347276958,1735653038484,-466.02064962,0.00018677,2]
[347276959,1735653038493,-5164.75756255,0.00018914,2]
[347276961,1735653038503,-151.0,0.00019,2]
[347276964,1735653038512,-169.89561177,0.00019023,2]
[347276965,1735653038522,-843.22427524,0.00019041,2]
[347276967,1735653038531,-686.63857872,0.00019076,2]
[347276969,1735653038541,-27468.71769853,0.00019078,2]
[347276972,1735653038553,-974.12563893,0.00019078,2]
[347276974,1735653038564,-4109.16097878,0.00019078,2]
[347276976,1735653038574,-151.0,0.000191,2]
[347276978,1735653038583,-500.0,0.00019144,2]
[347276980,1735653038592,-498.36971157,0.00019144,2]
[347276982,1735653038605,-500.0,0.00019144,2]
[347276984,1735653038615,-455.1057332,0.00019144,2]
[347276986,1735653038624,-500.0,0.00019144,2]
[347276988,1735653038633,-500.0,0.00019144,2]
[347276990,1735653038643,-500.0,0.00019144,2]
[347276992,1735653038652,-474.50446482,0.00019144,2]
[347276994,1735653038662,-500.0,0.00019144,2]
[347276996,1735653038671,-500.0,0.00019144,2]
[347276998,1735653038680,-500.0,0.00019144,2]
[347277000,1735653038690,-500.0,0.00019144,2]
[347277002,1735653038700,-500.0,0.00019144,2]
[347277004,1735653038711,-500.0,0.00019144,2]
[347277006,1735653038719,-500.0,0.00019144,2]
[347277008,1735653038728,-500.0,0.00019144,2]
[347277010,1735653038738,-500.0,0.00019144,2]
[347277012,1735653038748,-500.0,0.00019144,2]
[347277014,1735653038761,-618.77033846,0.00019144,2]
[347277016,1735653038770,-500.0,0.00019144,2]
[347277018,1735653038780,-500.0,0.00019144,2]
[347277020,1735653038789,-500.0,0.00019144,2]
[347277022,1735653038798,-500.0,0.00019144,2]
[347277024,1735653038807,-429.5291642,0.00019144,2]
[347277026,1735653038816,-500.0,0.00019144,2]
[347277028,1735653038825,-500.0,0.00019144,2]
[347277030,1735653038834,-500.0,0.00019144,2]
[347277032,1735653038844,-500.0,0.00019144,2]
[347277034,1735653038855,-500.0,0.00019144,2]
[347277036,1735653038864,-500.0,0.00019144,2]
[347277038,1735653038873,-500.0,0.00019144,2]
[347277040,1735653038882,-500.0,0.00019144,2]
[347277042,1735653038892,-500.0,0.00019144,2]
[347277044,1735653038901,-500.0,0.00019144,2]
[347277046,1735653038911,-500.0,0.00019144,2]
[347277048,1735653038920,-500.0,0.00019144,2]
[347277050,1735653038929,-500.0,0.00019144,2]
[347277052,1735653038941,-500.0,0.00019144,2]
[347277055,1735653038952,-564.65090117,0.00019144,2]
[347277057,1735653038961,-500.0,0.00019144,2]
[347277059,1735653038971,-500.0,0.00019144,2]
[347277061,1735653038980,-500.0,0.00019144,2]
[347277063,1735653038989,-500.0,0.00019144,2]
[347277065,1735653038999,-500.0,0.00019144,2]
[347277067,1735653039008,-500.0,0.00019144,2]
[347277068,1735653039017,-500.0,0.00019144,2]
[347277070,1735653039027,-500.0,0.00019144,2]
[347277073,1735653039036,-500.0,0.00019144,2]
[347277075,1735653039045,-500.0,0.00019144,2]
[347277077,1735653039054,-500.0,0.00019144,2]
[347277078,1735653039063,-500.0,0.00019144,2]
[347277080,1735653039073,-500.0,0.00019144,2]
[347277083,1735653039082,-500.0,0.00019144,2]
[347277084,1735653039091,-500.0,0.00019144,2]
[347277086,1735653039101,-500.0,0.00019144,2]
[347277088,1735653039111,-500.0,0.00019144,2]
[347277091,1735653039120,-500.0,0.00019144,2]
[347277092,1735653039129,-500.0,0.00019144,2]
[347277094,1735653039140,-500.0,0.00019144,2]
[347277096,1735653039149,-500.0,0.00019144,2]
[347277098,1735653039158,-270.2598929,0.00019144,2]
[347277100,1735653039167,-500.0,0.00019144,2]
[347277103,1735653039178,-500.0,0.00019144,2]
[347277104,1735653039188,-500.0,0.00019144,2]
[347277106,1735653039197,-500.0,0.00019144,2]
[347277108,1735653039207,-500.0,0.00019144,2]
[347277111,1735653039217,-686.63857872,0.00019145,2]
[347277113,1735653039226,-500.0,0.00019153,6]
[347277114,1735653039235,-155.51847574,0.00019173,2]
[347277116,1735653039245,-313.77508014,0.00019173,2]
[347277119,1735653039254,-500.0,0.00019173,2]
[347277120,1735653039263,-500.0,0.00019173,2]
[347277122,1735653039273,-478.05500604,0.00019173,2]
[347277124,1735653039282,-597.69056198,0.00019173,2]
[347277126,1735653039291,-611.24026129,0.00019173,2]
[347277128,1735653039300,-500.15036042,0.00019173,2]
[347277130,1735653039310,-500.0,0.00019173,2]
[347277132,1735653039319,-503.51640862,0.00019173,2]
[347277134,1735653039328,-501.30750501,0.00019173,2]
[347277136,1735653039337,-500.0,0.00019173,2]
[347277138,1735653039346,-500.0,0.00019173,2]
[347277140,1735653039358,-179.29740534,0.00019173,2]
[347277142,1735653039368,-501.28468157,0.00019173,2]
[347277144,1735653039377,-5467.83297135,0.00019177,2]
[347277146,1735653039386,-500.0,0.00019178,2]
[347277148,1735653039395,-500.0,0.00019178,2]
[347277150,1735653039404,-500.0,0.00019178,2]
[347277152,1735653039413,-500.0,0.00019178,2]
[347277154,1735653039422,-500.0,0.00019178,2]
[347277163,1735653039488,-500.0,0.00019178,2]
[347277165,1735653039498,-500.0,0.00019178,2]
[347277167,1735653039507,-616.31369535,0.00019178,2]
[347277169,1735653039517,-500.0,0.00019178,2]
[347277171,1735653039526,-500.0,0.00019178,2]
[347277172,1735653039536,-500.0,0.00019178,2]
[347277175,1735653039545,-500.0,0.00019178,2]
[347277177,1735653039555,-500.0,0.00019178,2]
[347277178,1735653039564,-500.0,0.00019178,2]
[347277181,1735653039574,-500.0,0.00019178,2]
[347277183,1735653039583,-500.0,0.00019178,2]
[347277185,1735653039594,-500.0,0.00019178,2]
[347277187,1735653039605,-500.0,0.00019178,2]
[347277189,1735653039614,-500.0,0.00019178,2]
[347277191,1735653039624,-500.0,0.00019178,2]
[347277193,1735653039633,-500.0,0.00019178,2]
[347277195,1735653039643,-500.0,0.00019178,2]
[347277197,1735653039652,-812.63,0.00019178,2]
[347277198,1735653039661,-500.0,0.00019178,2]
[347277200,1735653039671,-500.0,0.00019178,2]
[347277202,1735653039680,-500.0,0.00019178,2]
[347277204,1735653039690,-500.0,0.00019178,2]
[347277206,1735653039700,-500.0,0.00019178,2]
[347277208,1735653039709,-500.0,0.00019178,2]
[347277210,1735653039719,-500.0,0.00019178,2]
[347277212,1735653039728,-500.0,0.00019178,2]
[347277214,1735653039737,-500.0,0.00019178,2]
[347277216,1735653039748,-418.49653779,0.00019178,2]
[347277218,1735653039760,-500.0,0.00019178,2]
[347277221,1735653039769,-500.0,0.00019178,2]
[347277224,1735653039779,-500.0,0.00019178,2]
[347277226,1735653039789,-500.0,0.00019178,2]
[347277228,1735653039799,-500.34686772,0.00019178,2]
[347277230,1735653039808,-500.0,0.00019178,2]
[347277232,1735653039817,-500.0,0.00019178,2]
[347277234,1735653039826,-500.0,0.00019178,2]
[347277236,1735653039836,-500.0,0.00019178,2]
[347277238,1735653039846,-500.0,0.00019178,2]
[347277240,1735653039856,-500.0,0.00019178,2]
[347277242,1735653039866,-500.0,0.00019178,2]
[347277244,1735653039875,-500.0,0.00019178,2]
[347277246,1735653039884,-500.0,0.00019178,2]
[347277248,1735653039893,-500.0,0.00019178,2]
[347277250,1735653039902,-500.0,0.00019178,2]
[347277252,1735653039912,-500.0,0.00019178,2]
[347277254,1735653039921,-500.0,0.00019178,2]
[347277256,1735653039930,-501.25942934,0.00019178,2]
[347277258,1735653039940,-500.0,0.00019178,2]
[347277260,1735653039951,-500.0,0.00019178,2]
[347277261,1735653039960,-500.0,0.00019178,2]
[347277262,1735653039969,-506.38047788,0.00019178,2]
[347277263,1735653039978,-500.0,0.00019178,2]
[347277264,1735653039987,-500.0,0.00019178,2]
[347277265,1735653039996,-538.75495076,0.00019178,2]
[347277266,1735653040006,-500.0,0.00019178,2]
[347277267,1735653040015,-417.38418094,0.00019178,2]
[347277268,1735653040024,-500.0,0.00019178,2]
[347277269,1735653040034,-500.0,0.00019178,2]
[347277270,1735653040043,-500.22858821,0.00019178,2]
[347277272,1735653040052,-500.0,0.00019178,2]
[347277274,1735653040062,-500.0,0.00019178,2]
[347277275,1735653040071,-500.77980982,0.00019178,2]
[347277276,1735653040080,-500.0,0.00019178,2]
[347277278,1735653040090,-500.0,0.00019178,2]
[347277279,1735653040101,-500.0,0.00019178,2]
[347277280,1735653040110,-500.0,0.00019178,2]
[347277281,1735653040119,-500.0,0.00019178,2]
[347277282,1735653040130,-500.0,0.00019178,2]
[347277283,1735653040139,-572.91640191,0.00019178,2]
[347277284,1735653040148,-500.0,0.00019178,2]
[347277285,1735653040157,-500.0,0.00019178,2]
[347277286,1735653040166,-506.21522054,0.00019178,2]
[347277287,1735653040175,-500.0,0.00019178,2]
[347277288,1735653040185,-500.0,0.00019178,2]
[347277289,1735653040194,-500.0,0.00019178,2]
[347277290,1735653040204,-504.8229556,0.00019178,2]
[347277291,1735653040213,-500.57621337,0.00019178,2]
[347277292,1735653040223,-500.7313372,0.00019178,2]
[347277293,1735653040232,-500.0,0.00019178,2]
[347277294,1735653040241,-500.0,0.00019178,2]
[347277295,1735653040251,-500.0,0.00019178,2]
[347277296,1735653040261,-500.0,0.00019178,2]
[347277297,1735653040270,-502.05394083,0.00019178,2]
[347277298,1735653040280,-500.0,0.00019178,2]
[347277299,1735653040289,-500.0,0.00019178,2]
[347277300,1735653040299,-500.0,0.00019178,2]
[347277301,1735653040308,-500.0,0.00019178,2]
[347277302,1735653040317,-500.0,0.00019178,2]
[347277303,1735653040327,-500.0,0.00019178,2]
[347277304,1735653040336,-500.0,0.00019178,2]
[347277305,1735653040345,-500.0,0.00019178,2]
[347277306,1735653040355,-500.0,0.00019178,2]
[347277307,1735653040365,-505.63908535,0.00019178,2]
[347277308,1735653040374,-329.04345223,0.00019178,2]
[347277309,1735653040383,-504.24768876,0.00019178,2]
[347277310,1735653040393,-500.0,0.00019178,2]
[347277311,1735653040402,-500.0,0.00019178,2]
[347277312,1735653040411,-500.0,0.00019178,2]
[347277313,1735653040476,-500.0,0.00019178,2]
[347277314,1735653040485,-528.79540431,0.00019178,2]
[347277315,1735653040495,-500.0,0.00019178,2]
[347277316,1735653040505,-500.0,0.00019178,2]
[347277317,1735653040515,-500.0,0.00019178,2]
[347277318,1735653040525,-500.0,0.00019178,2]
[347277319,1735653040534,-500.0,0.00019178,2]
[347277320,1735653040544,-500.0,0.00019178,2]
[347277321,1735653040553,-500.0,0.00019178,2]
[347277322,1735653040563,-500.0,0.00019178,2]
[347277323,1735653040573,-500.0,0.00019178,2]
[347277324,1735653040583,-500.0,0.00019178,2]
[347277325,1735653040593,-500.0,0.00019178,2]
[347277326,1735653040603,-500.0,0.00019178,2]
[347277327,1735653040613,-500.0,0.00019178,2]
[347277328,1735653040624,-500.0,0.00019178,2]
[347277329,1735653040634,-500.0,0.00019178,2]
[347277330,1735653040643,-500.0,0.00019178,2]
[347277331,1735653040654,-500.22612658,0.00019178,2]
[347277332,1735653040663,-500.0,0.00019178,2]
[347277333,1735653040673,-500.0,0.00019178,2]
[347277334,1735653040682,-201.63281508,0.00019178,2]
[347277335,1735653040691,-500.0,0.00019178,2]
[347277336,1735653040700,-500.0,0.00019178,2]
[347277337,1735653040709,-500.0,0.00019178,2]
[347277338,1735653040719,-500.0,0.00019178,2]
[347277339,1735653040728,-500.0,0.00019178,2]
[347277340,1735653040737,-500.0,0.00019178,2]
[347277341,1735653040746,-501.12497415,0.00019178,2]
[347277342,1735653040758,-500.0,0.00019178,2]
[347277343,1735653040767,-500.0,0.00019178,2]
[347277344,1735653040776,-500.0,0.00019178,2]
[347277345,1735653040786,-500.0,0.00019178,2]
[347277346,1735653040795,-503.02406814,0.00019178,2]
[347277347,1735653040804,-500.99761784,0.00019178,2]
[347277348,1735653040813,-500.0,0.00019178,2]
[347277349,1735653040823,-500.0,0.00019178,2]
[347277350,1735653040832,-500.0,0.00019178,2]
[347277351,1735653040842,-500.0,0.00019178,2]
[347277352,1735653040851,-500.0,0.00019178,2]
[347277353,1735653040861,-902.68,0.00019178,2]
[347277354,1735653040870,-601.81,0.00019178,2]
[347277355,1735653040879,-500.0,0.00019178,2]
[347277356,1735653040888,-500.0,0.00019178,2]
[347277357,1735653040897,-500.0,0.00019178,2]
[347277358,1735653040906,-500.0,0.00019178,2]
[347277359,1735653040915,-500.0,0.00019178,2]
[347277360,1735653040925,-501.63457564,0.00019178,2]
[347277361,1735653040934,-500.0,0.00019178,2]